bitfinex-derivatives/quotes_SOLF0:USTF0_20250731
["timestamp","ask_amount","ask_price","bid_price","bid_amount"]
[1753983915725,4.12115418,178.06,177.99,3.04]
[1753983915925,3.1,178.07,177.99,3.04]
[1753983916130,116.07461443,178.12,178.02,6.48024979]
[1753983916327,3.1,178.09,178.03,3.04]
[1753983916531,3.1,178.08,178.07,5.6162]
[1753983916726,3.1,178.08,178.07,8.6562]
[1753983916927,3.1,178.08,178.07,3.04]
[1753983917123,3.1,178.08,178.07,8.6562]
[1753983917431,3.1,178.13,178.07,3.04]
[1753983917628,3.1,178.13,178.09,3.04]
[1753983917832,3.1,178.14,178.13,3.04]
[1753983918029,3.1,178.14,178.1,6.48024979]
[1753983918030,3.1,178.13,178.11,3.04]
[1753983918334,3.1,178.14,178.08,3.04]
[1753983918626,4.12681029,178.13,178.1,3.04]
[1753983918832,3.1,178.14,178.12,3.04]
[1753983919030,3.1,178.13,178.11,3.04]
[1753983919534,3.1,178.14,178.01,3.04]
[1753983919830,9.58024979,178.14,178.05,3.04]
[1753983920025,3.1,178.11,178.06,5.6165]
[1753983920226,3.1,178.09,178.05,3.04]
[1753983920430,4.12643394,178.1,178.06,3.04]
[1753983920431,3.1,178.07,178.06,3.04]
[1753983921031,5.6153,178.1,178.04,3.04]
[1753983921032,3.1,178.09,178.04,3.04]
[1753983921334,3.1,178.07,178.02,5.6175]
[1753983921528,3.1,178.06,177.99,3.04]
[1753983922132,3.1,178.06,177.97,6.48024979]
[1753983922437,3.1,178.06,178.0,3.04]
[1753983922939,7.23147402,178.05,178.0,3.04]
[1753983923138,7.2318479,178.04,178.0,3.04]
[1753983923433,3.1,178.03,178.01,3.04]
[1753983923624,3.1,178.05,177.97,6.48024979]
[1753983923826,4.13353018,178.04,177.98,3.04]
[1753983924130,3.1,178.06,177.98,3.04]
[1753983924331,3.1,178.04,177.98,3.04]
[1753983924525,3.1,178.04,178.0,8.6581]
[1753983925238,5.617,178.05,178.0,8.6581]
[1753983925433,4.13538884,178.04,178.03,3.04]
[1753983925633,3.1,178.06,178.04,3.04]
[1753983925828,4.13771929,178.05,178.01,5.6178]
[1753983926136,3.1,178.07,177.99,3.04]
[1753983926433,4.13755855,178.06,177.99,3.04]
[1753983926629,3.1,178.07,178.04,5.617]
[1753983926831,4.13980492,178.06,178.05,3.04]
[1753983927032,7.23980492,178.06,178.0,6.48024979]
[1753983927232,3.1,178.09,178.03,3.04]
[1753983927432,3.1,178.07,178.03,3.04]
[1753983927633,4.14024351,178.06,178.01,3.04]
[1753983927834,7.24024351,178.06,178.0,6.48024979]
[1753983928034,3.1,178.09,178.01,3.04]
[1753983928337,3.02,178.12,178.06,6.48024979]
[1753983928537,4.14409159,178.11,178.07,3.32]
[1753983928738,3.02,178.11,178.1,5.6153]
[1753983928935,4.14468335,178.11,178.07,3.32]
[1753983929236,3.02,178.13,178.08,6.48024979]
[1753983929440,4.14426695,178.12,178.09,3.32]
[1753983929735,3.02,178.14,178.1,3.32]
[1753983929937,4.1462316,178.13,178.08,9.80024979]
[1753983930132,3.02,178.11,178.08,6.48024979]
[1753983930334,3.02,178.11,178.1,5.6153]
[1753983930536,3.02,178.11,178.08,3.32]
[1753983930733,3.02,178.09,178.08,3.32]
[1753983930938,3.02,178.13,178.05,3.32]
[1753983931129,8.6351,178.11,178.05,3.32]
[1753983931333,3.02,178.09,178.05,3.32]
[1753983931529,3.02,178.09,178.06,5.6162]
[1753983931732,5.6151,178.11,178.06,5.6162]
[1753983931938,3.02,178.07,178.06,5.6162]
[1753983932241,3.02,178.09,178.07,5.616]
[1753983932439,3.02,178.08,178.07,8.936]
[1753983932636,3.02,178.13,178.07,3.32]
[1753983932838,4.12957984,178.12,178.07,3.32]
[1753983933136,3.02,178.14,178.09,3.32]
[1753983933344,4.13185482,178.13,178.12,5.6146]
[1753983933639,7.15185482,178.13,178.12,8.9346]
[1753983934030,7.15185482,178.13,178.12,3.32]
[1753983934635,3.02,178.13,178.12,8.9346]
[1753983934842,3.02,178.15,178.12,3.32]
[1753983935034,7.15316432,178.14,178.12,3.32]
[1753983935235,3.02,178.14,178.09,3.32]
[1753983935741,3.02,178.14,178.08,6.48024979]
[1753983935941,3.02,178.14,178.13,3.32]
[1753983936141,7.15438054,178.14,178.13,3.32]
[1753983936733,4.13438054,178.14,178.13,3.32]
[1753983937135,3.02,178.14,178.13,3.32]
[1753983937335,4.13738832,178.14,178.1,6.48024979]
[1753983937540,3.02,178.14,178.12,3.32]
[1753983937941,3.02,178.13,178.12,3.32]
[1753983938142,3.02,178.13,178.12,8.9346]
[1753983938651,3.02,178.18,178.14,5.6138]
[1753983938948,3.02,178.16,178.14,8.9338]
[1753983939244,4.14249188,178.15,178.14,8.9338]
[1753983939843,115.14656464,178.2,178.15,5.6137]
[1753983940040,3.02,178.17,178.16,3.32]
[1753983940435,4.1436702,178.17,178.16,8.9334]
[1753983940734,4.1436702,178.17,178.14,6.48024979]
[1753983940735,3.02,178.18,178.14,9.80024979]
[1753983941045,104.94,178.2,178.13,3.32]
[1753983941046,3.02,178.19,178.13,3.32]
[1753983941246,3.02,178.17,178.13,3.32]
[1753983941446,3.02,178.16,178.13,3.32]
[1753983941645,110.5522,178.2,178.16,5.6133]
[1753983941844,3.02,178.17,178.16,8.9333]
[1753983942544,104.92,178.21,178.14,6.48024979]
[1753983942747,3.02,178.19,178.17,3.32]
[1753983942943,7.1706914,178.18,178.17,3.32]
[1753983943137,377.8,178.22,178.17,3.32]
[1753983943337,4.15028795,178.21,178.17,3.32]
[1753983943542,4.15028795,178.2,178.17,3.32]
[1753983943742,4.64832201,178.24,178.09,17.71094979]
[1753983943743,4.64832201,178.26,178.19,3.32]
[1753983943956,4.15364552,178.25,178.23,3.32]
[1753983944146,7.66832201,178.29,178.23,3.32]
[1753983944343,109.54832201,178.3,178.24,3.32]
[1753983944650,3.02,178.26,178.25,3.32]
[1753983944950,3.02,178.26,178.22,6.48024979]
[1753983945142,3.02,178.25,178.22,6.48024979]
[1753983945351,3.02,178.25,178.24,3.32]
[1753983945736,5.6104,178.26,178.19,3.32]
[1753983945938,3.02,178.28,178.2,6.48024979]
[1753983946145,3.02,178.28,178.2,9.80024979]
[1753983946343,107.9,178.28,178.21,3.32]
[1753983946544,3.02,178.25,178.18,3.32]
[1753983946742,3.02,178.25,178.19,6.48024979]
[1753983946951,3.02,178.24,178.21,5.6116]
[1753983947250,104.88,178.28,178.22,3.32]
[1753983947443,8.6301,178.27,178.23,5.611]
[1753983947637,3.02,178.26,178.25,3.32]
[1753983947842,3.02,178.27,178.21,3.32]
[1753983948543,3.02,178.25,178.18,3.32]
[1753983949051,3.02,178.2,178.16,6.48024979]
[1753983949243,3.02,178.2,178.18,3.32]
[1753983949439,3.02,178.21,178.16,3.32]
[1753983949643,3.02,178.21,178.14,6.48024979]
[1753983949840,3.02,178.18,178.16,3.32]
[1753983950047,3.02,178.21,178.14,3.32]
[1753983950246,6.48024979,178.2,178.14,3.32]
[1753983950447,3.02,178.19,178.15,3.32]
[1753983950642,3.02,178.19,178.12,3.32]
[1753983950852,3.02,178.17,178.12,3.32]
[1753983951052,3.02,178.17,178.12,8.9345]
[1753983951246,3.02,178.17,178.12,3.32]
[1753983951441,3.02,178.17,178.13,3.32]
[1753983951656,3.02,178.15,178.13,3.32]
[1753983951953,3.02,178.17,178.13,3.32]
[1753983952149,5.6138,178.15,178.13,3.32]
[1753983952340,6.48024979,178.16,178.1,3.32]
[1753983952541,3.02,178.13,178.07,3.32]
[1753983952946,3.02,178.1,178.08,8.9357]
[1753983953142,3.02,178.1,178.09,3.32]
[1753983953348,5.6151,178.11,178.08,5.6157]
[1753983953553,3.02,178.09,178.08,8.9357]
[1753983954255,3.02,178.11,178.09,8.9355]
[1753983954455,3.02,178.14,178.09,3.32]
[1753983955853,3.02,178.12,178.09,3.32]
[1753983956953,6.48024979,178.15,178.07,3.32]
[1753983956954,3.02,178.11,178.07,3.32]
[1753983957253,3.02,178.11,178.03,3.32]
[1753983957452,8.6351,178.11,178.03,3.32]
[1753983957647,3.02,178.1,178.03,3.32]
[1753983958050,3.02,178.1,178.08,5.6157]
[1753983959562,3.07,178.1,178.02,3.08]
[1753983959954,8.6856,178.1,178.02,3.08]
[1753983960154,3.07,178.09,178.02,3.08]
[1753983960548,3.07,178.08,178.06,3.08]
[1753983960748,3.07,178.07,178.06,3.08]
[1753983960950,3.07,178.07,178.02,3.08]
[1753983961253,3.07,178.09,178.02,3.08]
[1753983961661,3.07,178.09,178.08,3.08]
[1753983961953,3.07,178.11,178.09,3.08]
[1753983962153,3.07,178.1,178.09,3.08]
[1753983962758,3.07,178.1,178.04,3.08]
[1753983963259,5.6154,178.1,178.04,3.08]
[1753983963460,3.07,178.09,178.04,3.08]
[1753983963754,5.6154,178.1,178.04,3.08]
[1753983963951,3.07,178.08,178.04,3.08]
[1753983964560,3.07,178.1,178.04,3.08]
[1753983966563,3.07,178.09,178.07,3.08]
[1753983966761,3.07,178.11,178.07,3.08]
[1753983967062,8.6851,178.11,178.08,3.08]
[1753983967266,3.07,178.1,178.07,5.6163]
[1753983967457,3.07,178.1,178.07,8.6963]
[1753983967867,5.6154,178.1,178.07,3.08]
[1753983968066,3.07,178.09,178.07,3.08]
[1753983968260,3.07,178.08,178.07,3.08]
[1753983968464,3.07,178.08,178.03,3.08]
[1753983968972,3.07,178.08,178.02,5.6177]
[1753983969164,5.6168,178.06,178.0,1.26978]
[1753983969469,3.07,178.06,178.05,3.08]
[1753983969672,3.07,178.08,178.05,3.08]
[1753983969875,3.07,178.08,178.05,5.6169]
[1753983970074,3.07,178.08,178.05,8.6969]
[1753983970675,5.6157,178.09,178.0,1.26978]
[1753983970676,3.07,178.07,178.0,1.26978]
[1753983970869,3.07,178.07,178.01,3.08]
[1753983971271,3.07,178.06,178.03,8.6972]
[1753983971473,3.07,178.05,178.0,1.26978]
[1753983971770,6.48024979,178.14,178.03,6.48024979]
[1753983971976,3.07,178.11,178.09,3.08]
[1753983972182,110.4946,178.13,178.09,8.6955]
[1753983972370,3.07,178.1,178.09,8.6955]
[1753983972774,3.07,178.1,178.08,5.6159]
[1753983972974,3.07,178.09,178.08,8.6959]
[1753983973172,6.48024979,178.1,178.03,3.08]
[1753983973370,3.07,178.07,178.03,3.08]
[1753983973771,3.07,178.07,178.01,3.08]
[1753983974176,8.6866,178.07,178.03,5.6174]
[1753983974370,3.07,178.05,178.04,3.08]
[1753983974775,3.07,178.05,178.03,5.6174]
[1753983974971,3.07,178.05,178.0,1.26978]
[1753983974972,3.07,178.09,178.01,3.08]
[1753983975679,3.07,178.07,178.01,3.08]
[1753983976069,3.07,178.04,178.01,3.08]
[1753983976276,5.6172,178.05,178.01,3.08]
[1753983976480,3.07,178.03,178.01,3.08]
[1753983977373,3.07,178.02,178.01,3.08]
[1753983977576,3.07,178.07,178.01,3.08]
[1753983977777,3.07,178.07,178.01,6.48024979]
[1753983977983,3.07,178.11,178.06,3.08]
[1753983978169,3.07,178.11,178.07,6.48024979]
[1753983978376,3.07,178.15,178.1,3.08]
[1753983978681,3.07,178.13,178.1,3.08]
[1753983978981,3.07,178.11,178.1,3.08]
[1753983979174,3.07,178.11,178.08,3.08]
[1753983979378,111.36024979,178.16,178.07,3.08]
[1753983979571,3.07,178.14,178.07,3.08]
[1753983979778,3.07,178.12,178.07,3.08]
[1753983980080,3.07,178.15,178.06,3.08]
[1753983980378,3.07,178.12,178.08,3.08]
[1753983980576,3.07,178.12,178.09,5.6154]
[1753983980780,3.07,178.12,178.1,3.08]
[1753983980982,3.07,178.15,178.08,3.08]
[1753983981176,111.36024979,178.16,178.08,3.08]
[1753983981177,3.07,178.13,178.08,8.6958]
[1753983982176,3.07,178.1,178.08,5.6158]
[1753983982381,3.07,178.1,178.09,8.6957]
[1753983982782,5.6149,178.12,178.09,8.6957]
[1753983982984,3.07,178.1,178.09,8.6957]
[1753983983481,5.6149,178.12,178.09,8.6957]
[1753983983701,3.07,178.13,178.1,8.6952]
[1753983983981,3.07,178.11,178.1,3.08]
[1753983984679,3.07,178.13,178.07,9.56024979]
[1753983985080,3.07,178.13,178.08,3.08]
[1753983985682,3.07,178.13,178.04,3.08]
[1753983985683,3.07,178.11,178.04,3.08]
[1753983986079,3.07,178.05,178.04,3.08]
[1753983986575,3.07,178.05,178.04,8.6972]
[1753983986976,3.07,178.05,178.04,3.08]
[1753983987380,3.07,178.05,178.03,3.08]
[1753983987583,5.6181,178.02,178.0,1.26978]
[1753983987781,3.07,178.01,178.0,1.26978]
[1753983988089,8.6878,178.03,178.01,3.08]
[1753983988279,6.48024979,178.04,178.0,4.42978]
[1753983988280,3.08,178.02,178.0,4.42978]
[1753983988484,3.08,178.03,178.0,4.42978]
[1753983988779,3.08,178.01,178.0,1.26978]
[1753983989275,8.6982,178.01,178.0,1.26978]
[1753983989678,3.08,178.01,178.0,1.26978]
[1753983990076,3.08,178.03,178.0,1.26978]
[1753983990581,3.08,178.03,178.02,3.16]
[1753983990886,104.86,178.05,178.0,1.26978]
[1753983991183,3.08,178.03,178.02,3.16]
[1753983991684,5.6175,178.04,178.02,3.16]
[1753983991886,3.08,178.03,178.02,3.16]
[1753983992903,107.94,178.05,178.02,3.16]
[1753983993181,3.08,178.04,178.01,3.16]
[1753983993385,3.08,178.04,178.02,3.16]
[1753983993590,3.08,178.04,178.0,1.26978]
[1753983993884,3.08,178.03,178.02,3.16]
[1753983994986,3.08,178.03,178.0,4.42978]
[1753983995183,5.6177,178.03,178.0,4.42978]
[1753983995386,3.08,178.01,178.0,4.42978]
[1753983995785,110.4974,178.04,178.0,10.04808]
[1753983995991,3.08,178.03,178.01,3.16]
[1753983996288,3.08,178.02,178.01,3.16]
[1753983996692,3.08,178.02,178.0,1.26978]
[1753983996988,3.08,178.01,178.0,1.26978]
[1753983997485,3.08,178.01,178.0,4.42978]
[1753983997983,8.6982,178.01,178.0,1.26978]
[1753983998388,12.84594217,178.01,178.0,1.26978]
[1753983998583,12.84594217,178.01,178.0,0.02624114]
[1753983998985,3.55375886,177.99,177.97,3.16]
[1753983999291,3.08,178.01,177.95,3.16]
[1753983999590,3.08,177.96,177.94,8.7803]
[1753983999982,3.08,177.96,177.95,3.16]
[1753984000691,107.96,177.98,177.91,223.85221886]
[1753984000894,107.96,177.98,177.97,3.16]
[1753984001185,112.1063923,177.98,177.97,3.16]
[1753984001690,109.0263923,177.98,177.91,223.85221886]
[1753984001890,3.08,177.97,177.96,3.16]
[1753984002494,3.08,178.0,177.96,3.16]
[1753984002896,3.08,178.0,177.94,3.16]
[1753984003096,3.08,177.98,177.92,3.16]
[1753984003292,8.6993,177.98,177.92,3.16]
[1753984003593,104.86,178.01,177.92,3.16]
[1753984003786,4.1443684,178.0,177.96,3.16]
[1753984003986,104.88,178.02,177.93,6.48024979]
[1753984004194,3.08,178.0,177.94,3.16]
[1753984004395,5.6191,177.99,177.95,5.6199]
[1753984004592,3.08,177.97,177.96,3.16]
[1753984004997,3.08,178.05,177.96,3.16]
[1753984006192,3.08,178.05,178.04,3.16]
[1753984006588,3.08,178.05,178.01,3.16]
[1753984006894,482.5,178.06,178.0,3.16]
[1753984007095,3.08,178.02,178.01,3.16]
[1753984007496,8.6975,178.04,178.01,8.778]
[1753984007688,8.6975,178.04,178.02,3.16]
[1753984008396,3.08,178.03,178.02,3.16]
[1753984008994,3.08,178.03,178.01,8.778]
[1753984009196,3.08,178.03,178.02,3.16]
[1753984009500,8.6976,178.03,178.02,3.16]
[1753984009795,8.6976,178.03,178.0,5.6184]
[1753984009991,3.08,178.01,178.0,3.16]
[1753984010192,3.08,178.0,177.99,3.16]
[1753984010588,107.94,178.02,177.99,8.7786]
[1753984010792,3.08,178.01,178.0,3.16]
[1753984011196,104.86,178.02,178.01,3.16]
[1753984012198,104.86,178.02,178.01,8.7782]
[1753984013198,107.94,178.02,178.01,8.7782]
[1753984013396,3.08,178.05,178.03,5.6174]
[1753984013699,104.86,178.05,178.04,3.16]
[1753984014096,104.86,178.05,178.04,8.7772]
[1753984014303,107.94,178.08,178.04,3.16]
[1753984014599,107.94,178.08,178.06,5.6164]
[1753984014798,107.94,178.08,178.04,6.48024979]
[1753984015000,107.94,178.08,178.05,3.16]
[1753984015600,3.08,178.07,178.06,8.7764]
[1753984015793,3.08,178.07,178.04,6.48024979]
[1753984015993,104.86,178.08,178.05,3.16]
[1753984015994,3.08,178.06,178.05,3.16]
[1753984016398,3.08,178.07,178.06,3.16]
[1753984017508,3.08,178.07,178.06,8.7765]
[1753984019306,107.98,178.08,178.07,3.0]
[1753984020004,4.64832201,178.13,178.07,3.0]
[1753984020204,3.12,178.11,178.09,5.6154]
[1753984020412,3.12,178.11,178.07,3.0]
[1753984020603,104.84,178.12,178.07,3.0]
[1753984020804,3.12,178.15,178.1,6.48024979]
[1753984021101,3.12,178.14,178.1,6.48024979]
[1753984021401,3.12,178.14,178.04,11.2346]
[1753984021402,3.12,178.15,178.11,3.0]
[1753984021608,482.48,178.16,178.11,3.0]
[1753984021609,3.12,178.13,178.11,3.0]
[1753984021909,3.12,178.12,178.11,8.6151]
[1753984022314,3.12,178.13,178.08,6.48024979]
[1753984022510,3.12,178.15,178.11,8.6148]
[1753984023010,3.12,178.15,178.09,8.6155]
[1753984023206,482.48,178.16,178.06,6.48024979]
[1753984023207,4.14968785,178.14,178.06,6.48024979]
[1753984023406,482.48,178.16,178.09,3.0]
[1753984023604,3.12,178.14,178.09,3.0]
[1753984023905,482.48,178.16,178.09,3.0]
[1753984024103,7.26884155,178.15,178.09,3.0]
[1753984024301,3.12,178.13,178.11,3.0]
[1753984024507,3.12,178.12,178.11,3.0]
[1753984025508,3.12,178.12,178.11,8.6151]
[1753984025712,3.12,178.12,178.09,3.0]
[1753984026114,3.12,178.11,178.1,8.6153]
[1753984026815,3.12,178.11,178.09,5.6157]
[1753984027014,3.12,178.1,178.09,8.6157]
[1753984027414,3.12,178.12,178.1,5.6152]
[1753984027610,3.12,178.11,178.1,8.6152]
[1753984028013,3.12,178.11,178.1,3.0]
[1753984028215,104.8,178.13,178.08,3.0]
[1753984028515,3.12,178.09,178.08,8.616]
[1753984029621,3.12,178.09,178.07,5.6163]
[1753984029919,3.12,178.08,178.07,8.6163]
[1753984030119,3.12,178.09,178.08,8.6159]
[1753984030316,104.78,178.1,178.08,3.0]
[1753984030717,104.78,178.1,178.09,8.6157]
[1753984031522,3.12,178.12,178.09,8.6157]
[1753984031723,107.9,178.11,178.1,3.0]
[1753984031926,3.12,178.1,178.09,8.6157]
[1753984032225,107.9,178.11,178.1,8.6154]
[1753984032417,3.12,178.13,178.1,3.0]
[1753984032612,104.76,178.14,178.11,3.97361848]
[1753984032813,104.76,178.14,178.13,12.58811848]
[1753984033022,107.88,178.14,178.13,12.58811848]
[1753984033326,104.76,178.14,178.13,12.58811848]
[1753984033513,107.88,178.14,178.13,3.0]
[1753984033722,104.76,178.14,178.11,3.0]
[1753984034025,3.12,178.12,178.11,3.0]
[1753984034228,3.12,178.12,178.11,8.6151]
[1753984034414,107.88,178.14,178.11,3.0]
[1753984034619,3.12,178.13,178.12,3.0]
[1753984034821,3.12,178.13,178.12,5.6146]
[1753984035023,3.12,178.13,178.1,6.97361848]
[1753984035223,104.76,178.14,178.1,3.97361848]
[1753984035423,3.12,178.12,178.11,3.0]
[1753984035628,3.12,178.12,178.11,8.6151]
[1753984036126,3.12,178.12,178.07,3.0]
[1753984036326,3.12,178.12,178.06,3.97361848]
[1753984036327,3.12,178.12,178.08,3.0]
[1753984036525,3.12,178.13,178.07,3.0]
[1753984036720,3.12,178.11,178.09,5.6155]
[1753984036921,3.12,178.11,178.07,3.0]
[1753984036922,7.09361848,178.11,178.07,3.0]
[1753984037124,3.12,178.09,178.03,3.0]
[1753984037425,104.76,178.1,178.07,5.6163]
[1753984037724,3.12,178.08,178.07,8.6163]
[1753984038025,3.12,178.08,178.04,3.0]
[1753984038225,7.09361848,178.07,178.0,3.97361848]
[1753984038431,3.12,178.04,177.98,3.0]
[1753984038725,3.12,178.02,177.97,3.0]
[1753984039129,3.12,178.02,178.01,8.6182]
[1753984039323,104.74,178.03,178.01,8.6182]
[1753984039525,107.86,178.03,178.01,5.6182]
[1753984039732,3.12,178.02,178.01,8.6182]
[1753984041130,3.12,178.02,178.01,5.6182]
[1753984041630,3.12,178.02,178.01,8.6182]
[1753984042327,3.12,178.02,178.01,5.6182]
[1753984042530,3.12,178.02,177.96,3.0]
[1753984043930,3.12,178.02,177.99,5.6186]
[1753984044125,3.12,178.02,177.99,8.6186]
[1753984044323,116.84162656,178.03,177.99,8.6186]
[1753984044524,3.12,178.0,177.99,8.6186]
[1753984044819,116.84162656,178.03,177.99,3.0]
[1753984044820,107.86,178.03,177.99,3.0]
[1753984045130,394.83201941,178.13,177.99,3.0]
[1753984045131,104.76,178.04,177.99,3.0]
[1753984045433,3.12,178.03,177.99,3.0]
[1753984045625,3.12,178.03,178.02,8.6178]
[1753984045824,104.76,178.04,178.0,3.0]
[1753984046032,3.12,178.03,178.0,3.0]
[1753984046227,3.12,178.03,178.0,8.6184]
[1753984046428,3.12,178.03,178.0,3.0]
[1753984047231,3.12,178.02,178.0,3.0]
[1753984047429,3.12,178.02,178.01,8.6181]
[1753984047634,3.12,178.02,177.97,6.48382656]
[1753984047930,3.12,178.01,178.0,5.6184]
[1753984048126,3.12,178.01,177.96,3.06]
[1753984048326,3.03,178.03,177.96,3.06]
[1753984048536,5.618,178.02,177.98,5.619]
[1753984048731,3.03,178.01,177.98,8.679]
[1753984048931,3.03,178.0,177.96,3.06]
[1753984049136,3.03,177.99,177.96,8.6798]
[1753984049435,3.03,177.99,177.96,3.06]
[1753984049829,3.03,177.98,177.92,3.06]
[1753984050129,3.03,177.98,177.91,218.26833359]
[1753984050332,3.03,177.98,177.92,3.06]
[1753984050726,5.6196,177.97,177.93,5.6207]
[1753984050927,3.03,177.95,177.94,3.06]
[1753984051522,3.03,177.95,177.91,218.26833359]
[1753984051728,9.51382656,177.95,177.88,3.06]
[1753984051929,8.6511,177.93,177.88,8.6821]
[1753984052129,3.03,177.92,177.88,3.06]
[1753984052430,104.76,177.94,177.84,44.0]
[1753984052634,3.03,177.92,177.85,9.54382656]
[1753984052835,3.03,177.92,177.86,3.06]
[1753984053228,3.03,177.91,177.9,3.06]
[1753984053433,3.03,177.91,177.89,5.6218]
[1753984053628,3.03,177.91,177.88,3.06]
[1753984053825,3.03,177.9,177.81,3.06]
[1753984054231,3.03,177.9,177.8,6.48382656]
[1753984054232,5.6218,177.9,177.87,5.6227]
[1753984054433,3.03,177.89,177.87,8.6827]
[1753984054634,3.03,177.89,177.88,3.06]
[1753984055231,3.03,177.88,177.87,8.6827]
[1753984055433,3.03,177.88,177.86,5.6229]
[1753984055638,3.03,177.87,177.86,3.06]
[1753984056531,6.48382656,177.91,177.8,6.48382656]
[1753984056736,3.03,177.88,177.81,3.06]
[1753984057240,3.03,177.88,177.86,5.6228]
[1753984057632,3.03,177.88,177.81,3.06]
[1753984058234,5.6227,177.87,177.83,5.6236]
[1753984058735,5.6229,177.87,177.83,5.6237]
[1753984058936,5.6229,177.87,177.81,3.06]
[1753984059133,3.03,177.88,177.81,3.06]
[1753984059335,5.6242,177.82,177.81,3.06]
[1753984059733,6.48382656,177.83,177.69,380.3992558]
[1753984060037,3.03,177.79,177.69,336.3992558]
[1753984061035,3.03,177.79,177.71,3.989842]
[1753984061636,3.03,177.81,177.73,3.989842]
[1753984061937,3.03,177.81,177.78,5.6253]
[1753984062143,3.03,177.8,177.79,3.06]
[1753984063137,3.03,177.86,177.78,3.06]
[1753984063632,5.624,177.83,177.79,5.625]
[1753984063832,3.03,177.81,177.8,3.06]
[1753984064234,3.03,177.81,177.8,8.6849]
[1753984064438,3.03,177.86,177.77,6.49959309]
[1753984064635,3.03,177.86,177.82,3.06]
[1753984064938,3.03,177.84,177.82,3.06]
[1753984065138,3.03,177.83,177.82,3.06]
[1753984065434,3.03,177.83,177.7,11.2559]
[1753984065633,3.03,177.8,177.75,3.06]
[1753984065844,6.49959309,177.79,177.75,3.06]
[1753984066037,5.6258,177.77,177.69,217.84727761]
[1753984066235,3.03,177.75,177.74,3.06]
[1753984066836,3.03,177.77,177.74,5.6268]
[1753984067031,6.49959309,177.79,177.75,3.06]
[1753984067234,3.03,177.78,177.75,3.06]
[1753984067436,6.49959309,177.77,177.7,3.06]
[1753984067744,3.03,177.76,177.7,3.06]
[1753984067938,3.03,177.76,177.69,3.06]
[1753984068131,3.03,177.74,177.66,6.49959309]
[1753984068334,3.03,177.74,177.67,3.06]
[1753984069040,3.03,177.73,177.67,3.06]
[1753984069938,8.6574,177.73,177.67,3.06]
[1753984070440,3.03,177.73,177.67,3.06]